Cogmind - Beta 9.6 @@@ ROGUE MODE // 2020.04.15 @ 01:34:41 Player: alice_fexa Result: Destroyed by MAIN.C with Omega Cannon Performance ------------- Evolutions (9) 4500 Regions Visited (34) 6800 Robots Destroyed (188) 940 Value Destroyed (5281) 5281 Prototype IDs (131) 2620 Alien Tech Used (6) 1200 Bonus (14113) 14113 TOTAL SCORE: 35454 Bonus ------- High Alert Combat Kills 63 Follower Combat Kills 54 Aligned with FarCom 300 Met Data Miner 300 Met Zhirov 300 MAIN.C Attacked Warlord 500 Used Core Reset Matrix 3000 Met MAIN.C 5000 Destroyed MAIN.C Shell 5000 Friendly Fire -404 Cogmind --------- Core Integrity 0/1600 Matter 545/550 Energy 76/100 System Corruption 33% Temperature Cool (0) Movement Core (50) Location -1/Command Parts ------- > --- POWER (2) -------- (None) > --- PROPULSION (4) --- (None) > --- UTILITY (17) ----- Experimental Armor Integrity Analyzer > --- WEAPON (2) ------- (None) > --- INVENTORY (4) ---- Experimental Sensor Array Transdimensional Reconstructor Peak State ------------ > --- POWER ------------ Mini Fusion Reactor Mini Fusion Reactor > --- PROPULSION ------- Improved Diametric Drive Cooled Impulse Thruster Cooled Q-thruster Experimental Q-thruster > --- UTILITY ---------- Large Storage Unit Large Storage Unit Dimensional Manipulator Experimental Sensor Array Experimental Signal Interpreter Experimental Melee Analysis Suite Experimental Armor Integrity Analyzer Femtoactuators Advanced Reaction Control System Experimental Utility Shielding Experimental Force Field Advanced Hacking Suite Experimental Hacking Suite Experimental Hacking Suite Experimental Hacking Suite Advanced System Shield Advanced System Shield > --- WEAPON ----------- Nanosword Nanosword > --- INVENTORY -------- Mini Fusion Reactor Electron Diverter Electron Diverter Electron Diverter Improved Diametric Drive Improved Diametric Drive Advanced Energy Well Quantum Shading Machine Advanced Melee Analysis Suite Advanced Powered Armor Advanced Powered Armor Transdimensional Reconstructor Transdimensional Reconstructor Enhanced Nova Cannon Core Stripper [Rating: 206] Favorites ----------- Power Mini Fusion Reactor Engine Makeshift Power Source Power Core Light Nuclear Core Reactor Mini Fusion Reactor Propulsion Cooled Nuclear Pulse Thruster Treads Light Treads Wheel Armored Wheel Hover Unit Aerolev Unit Flight Unit Cooled Nuclear Pulse Thruster Utility Large Storage Unit Device Experimental Sensor Array Storage Large Storage Unit Processor Experimental Signal Interpreter Hackware Improved Hacking Suite Protection Experimental Utility Shielding Weapon Nanosword Energy Gun Heavy EM Pulse Gun Energy Cannon Enhanced Nova Cannon Ballistic Gun Improved Assault Rifle Ballistic Cannon Improved Light Cannon Launcher Mini Smartbomb Launcher Special Weapon Enhanced Flamer Impact Weapon Gravity Flail Slashing Weapon Nanosword Build | -11 -10 -10 -9 -9 -9 -8 -8 -7 -7 -7 -7 -6 -6 -6 -6 -6 -5 -5 -5 -5 -5 -4 -4 -4 -4 -4 -3 -3 -3 -2 -2 -2 -1 -1 ------- Run | Scr Mat Min Mat Min Exi Min Mat Fac Low Low Zio Pro Fac Low Low Dat Pro Fac Upp Upp Zhi Pro Fac Upp Upp War Pro Res Tes Res Qua Sec Acc Com Slots Evolved 18 | . . . 2 . . . 2 2 . . . . 2 . . . . 2 . . . . 2 . . . . 2 . 2 . . 2 . Power 1 | . . . . . . . . 1 . . . . . . . . . . . . . . . . . . . . . . . . . . Propulsion 2 | . . . 1 . . . . 1 . . . . . . . . . . . . . . . . . . . . . . . . . . Utility 15 | . . . 1 . . . 2 . . . . . 2 . . . . 2 . . . . 2 . . . . 2 . 2 . . 2 . Weapon . | . . . . . . . . . . . . . . . . . . . . . . . . . . . . . . . . . . . Parts Attached 268 | 6 10 6 20 . 1 4 35 22 1 2 1 2 22 1 2 . 2 13 . . 7 . 23 2 1 6 . 15 8 12 11 9 11 13 Power 44 | 1 4 2 3 . . 2 4 4 . 1 . . 4 . . . 1 1 . . . . 9 2 . . . 2 1 1 1 . . 1 Engine 17 | 1 4 2 2 . . 1 . 2 . 1 . . 3 . . . . 1 . . . . . . . . . . . . . . . . Core 10 | . . . 1 . . 1 4 2 . . . . 1 . . . 1 . . . . . . . . . . . . . . . . . Reactor 17 | . . . . . . . . . . . . . . . . . . . . . . . 9 2 . . . 2 1 1 1 . . 1 Propulsion 65 | 2 1 1 7 . . . 9 8 1 . . . 4 . . . . 1 . . 3 . 4 . . 2 . 5 3 3 3 4 1 3 Treads 7 | 1 1 . 3 . . . 2 . . . . . . . . . . . . . . . . . . . . . . . . . . . Leg . | . . . . . . . . . . . . . . . . . . . . . . . . . . . . . . . . . . . Wheel 12 | 1 . 1 4 . . . 5 1 . . . . . . . . . . . . . . . . . . . . . . . . . . Hover 4 | . . . . . . . 1 3 . . . . . . . . . . . . . . . . . . . . . . . . . . Flight 42 | . . . . . . . 1 4 1 . . . 4 . . . . 1 . . 3 . 4 . . 2 . 5 3 3 3 4 1 3 Utility 89 | 1 2 . 5 . . 2 10 9 . . . . 10 . . . 1 6 . . 4 . 6 . . 3 . 7 2 6 2 3 6 4 Device 35 | . . . 1 . . 2 2 4 . . . . 2 . . . . 2 . . 4 . 2 . . 3 . 3 1 3 . 3 2 1 Storage 15 | 1 2 . 2 . . . . 3 . . . . . . . . . 2 . . . . . . . . . 2 . 1 1 . . 1 Processor 11 | . . . . . . . 2 2 . . . . 4 . . . . . . . . . . . . . . . . 1 . . 2 . Hackware 15 | . . . . . . . 1 . . . . . 4 . . . 1 2 . . . . 4 . . . . 1 . 1 . . 1 . Protection 13 | . . . 2 . . . 5 . . . . . . . . . . . . . . . . . . . . 1 1 . 1 . 1 2 Artifact . | . . . . . . . . . . . . . . . . . . . . . . . . . . . . . . . . . . . Weapon 70 | 2 3 3 5 . 1 . 12 1 . 1 1 2 4 1 2 . . 5 . . . . 4 . 1 1 . 1 2 2 5 2 4 5 Energy Gun 5 | 1 . . 2 . . . 2 . . . . . . . . . . . . . . . . . . . . . . . . . . . Energy Cannon 3 | . . . . . . . . . . . . . . . . . . . . . . . . . . . . . . . . 1 1 1 Ballistic Gun 16 | 1 3 3 2 . 1 . 5 . . . . . . . . . . . . . . . . . . . . . 1 . . . . . Ballistic Cannon 1 | . . . 1 . . . . . . . . . . . . . . . . . . . . . . . . . . . . . . . Launcher 5 | . . . . . . . . . . . . . . 1 . . . 2 . . . . . . 1 . . . . 1 . . . . Special Weapon 1 | . . . . . . . . . . 1 . . . . . . . . . . . . . . . . . . . . . . . . Impact Weapon 14 | . . . . . . . . . . . . . 1 . . . . 1 . . . . 1 . . 1 . 1 1 1 3 . 1 3 Slashing Weapon 25 | . . . . . . . 5 1 . . 1 2 3 . 2 . . 2 . . . . 3 . . . . . . . 2 1 2 1 Piercing Weapon . | . . . . . . . . . . . . . . . . . . . . . . . . . . . . . . . . . . . Special Melee Weapon . | . . . . . . . . . . . . . . . . . . . . . . . . . . . . . . . . . . . Unidentified Prototypes 24 | . . . 2 . . . 2 . . . . . 4 . . . . 2 . . 3 . . . . 3 . . 3 . 2 2 1 . Parts Lost 45 | . 1 . . . . 3 1 1 1 . . . . . . 2 . . . . . 1 3 . . . 1 . 1 . . . . 30 Power 10 | . . . . . . 2 . . . . . . . . . 1 . . . . . 1 2 . . . 1 . . . . . . 3 Propulsion 11 | . . . . . . . 1 . 1 . . . . . . . . . . . . . 1 . . . . . 1 . . . . 7 Utility 18 | . . . . . . 1 . 1 . . . . . . . 1 . . . . . . . . . . . . . . . . . 15 Weapon 6 | . 1 . . . . . . . . . . . . . . . . . . . . . . . . . . . . . . . . 5 Highest Loss Streak 30 | . 1 . . . . 2 1 1 1 . . . . . . 2 . . . . . 1 2 . . . 1 . 1 . . . . 30 Average Slot Usage (%) 98 | . 96 100 99 100 100 99 99 90 92 99 100 100 99 100 100 100 99 99 100 100 98 100 99 100 100 99 95 99 99 99 99 99 99 96 Engine 4 | . 14 14 9 . . 2 . 5 7 7 7 7 8 6 6 6 6 9 11 11 11 11 3 . . . . . . . . . . . Core 2 | . . . 1 11 11 7 9 7 7 7 7 7 3 6 6 6 6 1 . . . . . . . . . . . . . . . . Reactor 3 | . . . . . . . . . . . . . . . . . . . . . . . 6 10 10 10 8 9 8 7 7 8 8 7 Treads 2 | . 14 14 11 11 11 11 9 . . . . . . . . . . . . . . . . . . . . . . . . . . . Wheel 4 | . 14 14 22 22 22 22 17 . . . . . . . . . . . . . . . . . . . . . . . . . . . Flight 16 | . . . . . . . . 25 30 30 30 30 25 26 26 26 26 23 23 23 23 23 20 21 21 21 18 18 18 16 17 16 16 15 Device 8 | . . . 1 . . 7 2 11 7 7 7 7 6 6 6 6 6 8 11 11 9 11 9 10 10 9 10 10 9 13 17 17 20 19 Storage 10 | . 25 28 22 22 22 22 18 7 7 7 7 7 6 6 6 6 6 5 5 5 5 5 5 5 5 5 5 7 9 8 8 8 8 8 Processor 6 | . . . . . . . 7 9 15 15 15 15 15 6 6 6 6 5 5 5 5 5 5 5 5 5 5 4 4 8 8 8 13 15 Hackware 20 | . . . . . . . 2 7 7 7 7 7 16 26 26 26 25 31 29 29 29 29 35 36 36 36 36 33 33 29 26 26 22 17 Protection 3 | . . . 9 11 11 3 14 . . . . . . . . . . . . . . . . . . . . 4 4 4 3 4 4 4 Ballistic Gun 3 | . 22 28 8 11 14 22 10 . . . . . . . . . . . . . . . . . . . . . . . . . . . Impact Weapon 2 | . . . . . . . . . . . . . 5 6 2 . . 3 5 5 5 5 5 5 1 3 5 3 4 3 . . . . Slashing Weapon 5 | . . . . . . . 6 8 7 7 7 7 5 5 6 13 13 7 5 5 5 5 4 5 5 5 5 4 4 4 7 7 7 7 Naked Turns . | . . . . . . . . . . . . . . . . . . . . . . . . . . . . . . . . . . . Heaviest Build 85 | 10 40 39 50 46 46 46 60 28 23 24 24 24 26 28 28 26 26 37 37 37 37 37 45 41 42 42 41 53 53 66 66 76 80 85 Greatest Support 88 | 20 20 16 32 24 24 24 24 31 24 24 24 24 30 30 30 30 30 37 37 37 46 46 46 46 46 56 43 54 56 66 68 67 87 88 Greatest Overweight (x) 5 | . 2 2 2 1 1 1 5 . . . . . . . . . . . . . . . . . . . . . 1 . . 1 . 3 Average Overweight (x) . | . 1 2 1 1 1 1 1 . . . . . . . . . . . . . . . . . . . . . . . . . . . Largest Inventory Capacity 16 | 6 16 16 16 16 16 16 16 16 8 8 8 8 8 8 8 8 8 10 10 10 10 10 10 10 10 10 10 16 16 16 16 16 16 16 Average Capacity 12 | 5 13 16 16 16 16 16 16 8 8 8 8 8 8 8 8 8 8 9 10 10 10 10 10 10 10 10 10 13 16 16 16 16 16 15 Most Carried 16 | 4 16 16 16 16 16 16 16 16 8 8 8 8 8 8 8 8 7 9 9 10 10 10 10 10 10 10 10 15 16 16 16 16 16 15 Average Carried 12 | 2 11 15 15 16 15 15 15 8 7 7 8 7 7 8 8 8 6 7 9 9 9 10 9 10 10 10 10 11 15 15 15 15 14 13 Final Capacity 16 | 6 16 16 16 16 16 16 16 8 8 8 8 8 8 8 8 8 8 10 10 10 10 10 10 10 10 10 10 16 16 16 16 16 16 4 Final Carried 16 | 4 16 16 16 16 16 15 16 8 7 8 8 8 8 8 8 8 6 9 9 10 10 10 10 10 10 10 10 15 16 16 16 15 15 2 Class Distribution -------------------- 53% | Wizard-Sprinter 21% | Mutant 6% | Scout 5% | Hacker-Sprinter 4% | Scavenger-Mutant Dominant Class ---------------- Mutant | -10/Materials Mutant | -10/Mines Mutant | -9/Materials Mutant | -9/Mines Mutant | -9/Exiles Mutant | -8/Mines Mutant | -8/Materials Scavenger-Sprinter | -7/Factory Scout | -7/Lower Caves Scout | -7/Lower Caves Scout | -7/Zion Scout | -6/Proximity Caves Hacker-Sprinter | -6/Factory Hacker-Sprinter | -6/Lower Caves Hacker-Sprinter | -6/Lower Caves Hacker-Sprinter | -6/Data Miner Hacker-Sprinter | -5/Proximity Caves Wizard-Sprinter | -5/Factory Wizard-Sprinter | -5/Upper Caves Wizard-Sprinter | -5/Upper Caves Wizard-Sprinter | -5/Zhirov Wizard-Sprinter | -4/Proximity Caves Wizard-Sprinter | -4/Factory Wizard-Sprinter | -4/Upper Caves Wizard-Sprinter | -4/Upper Caves Wizard-Sprinter | -4/Warlord Wizard-Sprinter | -3/Proximity Caves Wizard-Sprinter | -3/Research Wizard-Sprinter | -3/Testing Wizard-Sprinter | -2/Research Wizard-Sprinter | -2/Quarantine Wizard-Sprinter | -2/Section 7 Wizard-Sprinter | -1/Access Wizard-Sprinter | -1/Command Resources | -11 -10 -10 -9 -9 -9 -8 -8 -7 -7 -7 -7 -6 -6 -6 -6 -6 -5 -5 -5 -5 -5 -4 -4 -4 -4 -4 -3 -3 -3 -2 -2 -2 -1 -1 ----------- Run | Scr Mat Min Mat Min Exi Min Mat Fac Low Low Zio Pro Fac Low Low Dat Pro Fac Upp Upp Zhi Pro Fac Upp Upp War Pro Res Tes Res Qua Sec Acc Com Matter Collected 4193 | 236 260 112 444 . . 98 649 200 40 20 10 10 203 . . . 35 234 . . 90 . 214 17 139 60 . 150 98 141 159 126 364 84 Remotely . | . . . . . . . . . . . . . . . . . . . . . . . . . . . . . . . . . . . Salvage Created 8227 | . 535 188 660 14 . 100 823 434 22 . . . 220 45 . . . 265 54 . 97 . 878 54 67 . 72 433 202 694 194 459 676 1041 Parts 383 | . 39 10 40 3 . 5 45 26 . . . . 10 5 . . . 13 . . 1 . 23 . 6 . . 13 6 27 13 25 27 46 Haulers Intercepted 26 | . 2 . 3 . . . 2 3 . . . . 1 . . . . 1 . . . . 4 . . . . 2 . 2 1 1 4 . Recyclers Shooed 2 | . 1 . 1 . . . . . . . . . . . . . . . . . . . . . . . . . . . . . . . Parts Field Recycled . | . . . . . . . . . . . . . . . . . . . . . . . . . . . . . . . . . . . Retrieved Matter . | . . . . . . . . . . . . . . . . . . . . . . . . . . . . . . . . . . . Parts Self-Destructed 22 | . . . . . . . . . . . . 9 . 1 . . . . . . . . . . 3 9 . . . . . . . . Prevented 4 | . . . . . . . . . . . . . . 2 . . . . . . . 2 . . . . . . . . . . . . Kills | -11 -10 -10 -9 -9 -9 -8 -8 -7 -7 -7 -7 -6 -6 -6 -6 -6 -5 -5 -5 -5 -5 -4 -4 -4 -4 -4 -3 -3 -3 -2 -2 -2 -1 -1 ------- Run | Scr Mat Min Mat Min Exi Min Mat Fac Low Low Zio Pro Fac Low Low Dat Pro Fac Upp Upp Zhi Pro Fac Upp Upp War Pro Res Tes Res Qua Sec Acc Com Combat Hostiles Destroyed 83 | . 13 2 14 1 . 4 12 1 . . . . . 4 . . . 2 . . . . 2 . 9 . . . . 7 . 3 1 8 Melee 20 | . . . . . . . . 1 . . . . . . . . . 2 . . . . 2 . . . . . . 3 . 3 1 8 Guns 42 | . 13 2 10 1 . 4 12 . . . . . . . . . . . . . . . . . . . . . . . . . . . Cannons 4 | . . . 4 . . . . . . . . . . . . . . . . . . . . . . . . . . . . . . . AOE 17 | . . . . . . . . . . . . . . 4 . . . . . . . . . . 9 . . . . 4 . . . . Classes Destroyed 16 | . 6 2 2 . . . 2 1 . . . . . . . . . . . . . . . 1 . . . . . 1 . . . 1 Worker 14 | . 1 . . . . . 1 2 . . . . 1 . . . . 1 . . . . 2 . . . . 1 1 3 . . 1 . Tunneler 4 | . . 2 . . . . . 1 . . . . . . . . . . . . . . . . . . . 1 . . . . . . Hauler 26 | . 2 . 3 . . . 2 3 . . . . 1 . . . . 1 . . . . 4 . . . . 2 . 2 1 1 4 . Recycler 7 | . . 1 1 . . . 1 1 . . . . . . . . . . . . . . . . . . . 1 1 . . . 1 . Operator 19 | . 1 . 2 . . . 3 3 . . . . 4 . . . . 1 . . . . 2 . . . . . . . 2 . 1 . Drone 1 | . . . . . . . . . . . . . . . . . . . . . . . . . . . . . . 1 . . . . Watcher 32 | . 1 . 1 . . . 2 2 . . . . 1 . . . . 2 . . . . 6 . . . . 2 2 5 2 3 1 2 Swarmer 40 | . 6 . 9 1 . 3 3 . . . . . . 4 . . . 1 . . . . . . 9 . . . . 4 . . . . Saboteur 1 | . . . . . . . . . . . . . . . . . . . . . . . . . . . . . . . . . . 1 Grunt 18 | . 7 2 3 . . 1 3 . . . . . . . . . . 1 . . . . 1 . . . . . . . . . . . Brawler 1 | . . . . . . . 1 . . . . . . . . . . . . . . . . . . . . . . . . . . . Duelist 1 | . . . 1 . . . . . . . . . . . . . . . . . . . . . . . . . . . . . . . Sentry 8 | . . . 2 . . . 4 . . . . . . . . . . . . . . . . . . . . . . . . 1 . 1 Hunter 1 | . . . . . . . 1 . . . . . . . . . . . . . . . . . . . . . . . . . . . Programmer 12 | . . . . . . . . 1 . . . . . . . . . . . . . . 1 . . . . . . 2 . 2 1 5 Decomposer 1 | . . . . . . . . . 1 . . . . . . . . . . . . . . . . . . . . . . . . . Samaritan 1 | . . . . . . . . . . . . . . . . . . . . . . . . 1 . . . . . . . . . . Best Kill Streak 5 | . 4 2 4 1 . 3 4 2 . . . . 1 4 . . . 2 . . . . 3 . 4 . . 2 2 4 3 5 4 4 Combat Bots Only 4 | . 4 2 3 1 . 3 3 1 . . . . . 4 . . . 2 . . . . 1 . 4 . . . . 4 . 2 1 3 Max Kills in Single Turn 4 | . 1 1 2 1 . 2 1 1 1 . . . 1 3 . . . 1 . . . . 1 1 4 . . 1 1 4 1 1 1 1 Gunslinging 1 | . . . . . . 1 . . . . . . . . . . . . . . . . . . . . . . . . . . . . Exploded 4 | . . . . . . . . . . . . . . 3 . . . . . . . . . . 4 . . . . 4 . . . . Melee 1 | . . . . . . . . 1 . . . . . . . . . 1 . . . . 1 . . . . . . 1 . 1 1 1 Uniques/NPCs Destroyed 1 | . . . . . . . . . . . . . . . . . . . . . . . . . . . . . . . . . . 1 MAIN.C Shell (-1/Command) Combat | -11 -10 -10 -9 -9 -9 -8 -8 -7 -7 -7 -7 -6 -6 -6 -6 -6 -5 -5 -5 -5 -5 -4 -4 -4 -4 -4 -3 -3 -3 -2 -2 -2 -1 -1 -------- Run | Scr Mat Min Mat Min Exi Min Mat Fac Low Low Zio Pro Fac Low Low Dat Pro Fac Upp Upp Zhi Pro Fac Upp Upp War Pro Res Tes Res Qua Sec Acc Com Damage Taken 10167 | . 486 129 420 . . 301 1222 242 128 . . . . 58 . 98 . . . . . 40 684 166 88 . 109 . . 410 242 227 258 4859 Core 2690 | . 84 27 50 . . 33 181 84 47 . . . . 25 . . . . . . . . 202 47 32 . . . . 89 44 69 91 1585 Absorbed by Shields 1048 | . . . . . . . . . . . . . . . . . . . . . . . . . . . . . . 60 72 233 200 483 Core Remaining (%) 83 | 100 . 55 . . . 79 67 . . . . 81 . . . . 97 . . . . 90 . . . . 75 . 100 . . 86 . . Volleys Fired 231 | . 55 16 64 1 . 8 62 . . 1 . . . 4 . . . 1 . . . . . . 6 . . . . 1 . 6 1 5 Largest 2 | . 2 2 2 2 . 2 2 . . 1 . . . 1 . . . 1 . . . . . . 1 . . . . 1 . 1 1 1 Hottest 120 | . 60 40 84 68 . 46 68 . . 80 . . . 36 . . . 80 . . . . . . 80 . . . . 80 . 120 120 120 Shots Fired 428 | . 109 32 128 2 . 16 116 . . 1 . . . 4 . . . 1 . . . . . . 6 . . . . 1 . 6 1 5 Gun 361 | . 109 32 86 2 . 16 116 . . . . . . . . . . . . . . . . . . . . . . . . . . . Cannon 54 | . . . 42 . . . . . . . . . . . . . . . . . . . . . . . . . . . . 6 1 5 Launcher 12 | . . . . . . . . . . . . . . 4 . . . 1 . . . . . . 6 . . . . 1 . . . . Special 1 | . . . . . . . . . . 1 . . . . . . . . . . . . . . . . . . . . . . . . Kinetic 319 | . 81 32 88 1 . 16 101 . . . . . . . . . . . . . . . . . . . . . . . . . . . Thermal 41 | . 28 . . . . . . . . 1 . . . . . . . . . . . . . . . . . . . . . 6 1 5 Explosive 12 | . . . . . . . . . . . . . . 4 . . . 1 . . . . . . 6 . . . . 1 . . . . Electromagnetic 56 | . . . 40 1 . . 15 . . . . . . . . . . . . . . . . . . . . . . . . . . . Robot Hit Streak 27 | . 10 12 17 . . 9 27 . . . . . . 1 . . . . . . . . . . . . . . . . . . . . Robot Miss Streak 8 | . 7 1 8 4 . 1 3 . . . . . . 2 . . . . . . . . . . . . . . . . . . . . Penetration Max . | . . . . . . . . . . . . . . . . . . . . . . . . . . . . . . . . . . . Secondary Targets 6 | . . 1 2 . . 1 2 . . . . . . . . . . . . . . . . . . . . . . . . . . . Max Gunslinging Chain 1 | . . 1 1 . . 1 1 . . . . . . . . . . . . . . . . . . . . . . . . . . . Shots Hit Robots 555 | . 69 24 77 . . 12 103 31 1 . . . 12 1 . 1 . 11 1 . 2 . 34 2 . . 1 10 5 20 7 27 17 87 Core Hits 229 | . 29 11 30 1 . 6 35 12 1 . . . 6 5 . . . 6 . . 1 . 9 1 10 . . 3 2 11 5 8 8 29 Critical Hits 8 | . 1 . 2 . . . 2 1 . . . . . . . . . . . . . . . . . . . . . . . . 2 . Critical Kills 3 | . 1 . . . . . . 1 . . . . . . . . . . . . . . . . . . . . . . . . 1 . Critical Parts Destroyed 5 | . . . 2 . . . 2 . . . . . . . . . . . . . . . . . . . . . . . . . 1 . Melee Attacks 917 | . . . . . . . 47 68 6 . . 1 77 16 6 19 4 70 9 24 2 . 150 13 . 2 2 38 29 103 36 35 32 128 Impact 145 | . . . . . . . . . . . . . 23 5 . . . 10 2 4 . . 50 2 . . 2 11 6 26 2 . . 2 Slashing 772 | . . . . . . . 47 68 6 . . 1 54 11 6 19 4 60 7 20 2 . 100 11 . 2 . 27 23 77 34 35 32 126 Piercing . | . . . . . . . . . . . . . . . . . . . . . . . . . . . . . . . . . . . Sneak Attacks 71 | . . . . . . . 8 12 1 . . . 5 . . 1 . 5 . . . . 8 2 . . . 6 4 8 3 1 6 1 Combat Hostiles 4 | . . . . . . . . . . . . . . . . . . 3 . . . . . . . . . . . 1 . . . . Follow-up Attacks 30 | . . . . . . . . . . . . . 2 . . . . 3 . . . . 3 . . . . . 2 1 . 6 3 10 Damage Inflicted 28726 | . 719 178 1100 15 . 171 2398 2138 142 . . . 1114 349 . 128 . 886 171 . 306 . 2398 310 1021 . 203 1267 512 2368 959 1843 2088 5942 Guns 3100 | . 719 178 630 15 . 171 1387 . . . . . . . . . . . . . . . . . . . . . . . . . . . Cannons 470 | . . . 470 . . . . . . . . . . . . . . . . . . . . . . . . . . . . . . . Explosions 1742 | . . . . . . . 35 . . . . . . 349 . . . 30 . . . . . . 1021 . . . . 307 . . . . Melee 23414 | . . . . . . . 976 2138 142 . . . 1114 . . 128 . 856 171 . 306 . 2398 310 . . 203 1267 512 2061 959 1843 2088 5942 Ramming . | . . . . . . . . . . . . . . . . . . . . . . . . . . . . . . . . . . . Kinetic 2812 | . 490 178 745 15 . 171 1213 . . . . . . . . . . . . . . . . . . . . . . . . . . . Thermal 264 | . 229 . . . . . 35 . . . . . . . . . . . . . . . . . . . . . . . . . . . Explosive 1707 | . . . . . . . . . . . . . . 349 . . . 30 . . . . . . 1021 . . . . 307 . . . . Electromagnetic 529 | . . . 355 . . . 174 . . . . . . . . . . . . . . . . . . . . . . . . . . . Impact 3869 | . . . . . . . . . . . . . 221 . . . . 54 . . . . 1516 . . . 203 484 309 1004 . . . 78 Slashing 19545 | . . . . . . . 976 2138 142 . . . 893 . . 128 . 802 171 . 306 . 882 310 . . . 783 203 1057 959 1843 2088 5864 Piercing . | . . . . . . . . . . . . . . . . . . . . . . . . . . . . . . . . . . . Highest Corruption 33 | . . . 2 2 2 2 . . . . . . . . . . . . . . . . 2 2 2 2 . 1 3 3 3 5 3 33 Average Corruption 2 | . . . 2 2 2 2 . . . . . . . . . . . . . . . . 1 2 2 2 . 1 2 1 3 3 2 5 Corruption Purged . | . . . . . . . . . . . . . . . . . . . . . . . . . . . . . . . . . . . Effects 90 | . . . 5 2 4 2 . . . . . . . . . . . . . . . . 11 3 3 . . . 7 6 16 9 1 21 Message Errors 33 | . . . . 1 2 1 . . . . . . . . . . . . . . . . 4 2 2 . . . 3 4 3 5 . 6 Matter Fused 14 | . . . . . . . . . . . . . . . . . . . . . . . . . . . . . 3 . 7 . 1 3 Heat Flow Errors 16 | . . . 1 . 1 . . . . . . . . . . . . . . . . . 5 1 . . . . . . 2 3 . 3 Energy Discharges 8 | . . . 1 1 . . . . . . . . . . . . . . . . . . 2 . . . . . . . 3 . . 1 Parts Rejected 1 | . . . . . . . . . . . . . . . . . . . . . . . . . . . . . . . . 1 . . Data Loss (minor) 8 | . . . 1 . 1 1 . . . . . . . . . . . . . . . . . . . . . . 1 2 1 . . 1 Misdirections 1 | . . . . . . . . . . . . . . . . . . . . . . . . . . . . . . . . . . 1 Targeting Errors 9 | . . . 2 . . . . . . . . . . . . . . . . . . . . . 1 . . . . . . . . 6 Overload Shots . | . . . . . . . . . . . . . . . . . . . . . . . . . . . . . . . . . . . Overflow Damage 4930 | . . . 21 . . . 212 459 . . . . 250 20 . 68 . 75 162 . 145 . 778 133 31 . 147 337 188 803 200 194 449 258 Projectiles 21 | . . . 21 . . . . . . . . . . . . . . . . . . . . . . . . . . . . . . . Explosions 51 | . . . . . . . . . . . . . . 20 . . . . . . . . . . 31 . . . . . . . . . Melee 4858 | . . . . . . . 212 459 . . . . 250 . . 68 . 75 162 . 145 . 778 133 . . 147 337 188 803 200 194 449 258 Knockbacks 16 | . . . 3 . . . . . . . . . . . . . . . . . . . 6 . . . . 2 . 4 . . . 1 Impact 13 | . . . . . . . . . . . . . . . . . . . . . . . 6 . . . . 2 . 4 . . . 1 Kinetic 3 | . . . 3 . . . . . . . . . . . . . . . . . . . . . . . . . . . . . . . Secondary . | . . . . . . . . . . . . . . . . . . . . . . . . . . . . . . . . . . . Self-Inflicted Damage 70 | . . . . . . . 37 . . . . . . 33 . . . . . . . . . . . . . . . . . . . . Shots 2 | . . . . . . . 1 . . . . . . 1 . . . . . . . . . . . . . . . . . . . . Rammed . | . . . . . . . . . . . . . . . . . . . . . . . . . . . . . . . . . . . Targets Rammed . | . . . . . . . . . . . . . . . . . . . . . . . . . . . . . . . . . . . Kicked . | . . . . . . . . . . . . . . . . . . . . . . . . . . . . . . . . . . . Crushed . | . . . . . . . . . . . . . . . . . . . . . . . . . . . . . . . . . . . Highest Temperature 407 | . 105 25 254 12 177 1 317 3 . 48 . . . . . . . 34 . . . . 277 197 136 . 2 96 84 50 122 407 6 218 Average Temperature 43 | . 51 11 41 8 96 1 90 3 . 18 . . . . . . . 20 . . . . 126 120 48 . 2 32 22 6 53 91 4 71 Received Heat Transfer 1149 | . 186 66 39 . . 108 369 . . . . . . . . 12 . . . . . 12 57 12 . . 18 . . 18 4 12 4 232 Effects 8 | . . . . . . . 2 . . . . . . . . . . . . . . . 2 . . . . . . . . 4 . . Shutdowns 1 | . . . . . . . . . . . . . . . . . . . . . . . . . . . . . . . . 1 . . Energy Bleed 1 | . . . . . . . . . . . . . . . . . . . . . . . . . . . . . . . . 1 . . Interference 6 | . . . . . . . 2 . . . . . . . . . . . . . . . 2 . . . . . . . . 2 . . Siege Activations . | . . . . . . . . . . . . . . . . . . . . . . . . . . . . . . . . . . . Robots Corrupted . | . . . . . . . . . . . . . . . . . . . . . . . . . . . . . . . . . . . Combat Hostiles . | . . . . . . . . . . . . . . . . . . . . . . . . . . . . . . . . . . . Parts Fried 39 | . . . . . . . 1 . . . . . 3 . . . . 4 . . . . 12 . . . . 7 4 8 . . . . Impact Corruptions 53 | . . . . . . . . . . . . . 2 . . . . 2 . . . . 22 . . . 6 8 2 11 . . . . Robots Melted . | . . . . . . . . . . . . . . . . . . . . . . . . . . . . . . . . . . . Combat Hostiles . | . . . . . . . . . . . . . . . . . . . . . . . . . . . . . . . . . . . Parts Melted 1 | . . . 1 . . . . . . . . . . . . . . . . . . . . . . . . . . . . . . . Heat Transferred 575 | . 525 . . . . . 50 . . . . . . . . . . . . . . . . . . . . . . . . . . . Parts Sabotaged . | . . . . . . . . . . . . . . . . . . . . . . . . . . . . . . . . . . . Parts Stolen 2 | . . . . . . . . . . . . . . . . . . . . . . . . . . . 2 . . . . . . . Parts Stripped . | . . . . . . . . . . . . . . . . . . . . . . . . . . . . . . . . . . . Power Chain Reactions 1 | . . . . . . . 1 . . . . . . . . . . . . . . . . . . . . . . . . . . . Missiles Intercepted . | . . . . . . . . . . . . . . . . . . . . . . . . . . . . . . . . . . . Alert | -11 -10 -10 -9 -9 -9 -8 -8 -7 -7 -7 -7 -6 -6 -6 -6 -6 -5 -5 -5 -5 -5 -4 -4 -4 -4 -4 -3 -3 -3 -2 -2 -2 -1 -1 ------- Run | Scr Mat Min Mat Min Exi Min Mat Fac Low Low Zio Pro Fac Low Low Dat Pro Fac Upp Upp Zhi Pro Fac Upp Upp War Pro Res Tes Res Qua Sec Acc Com Peak Influence 673 | . 273 74 260 59 . 85 166 112 . . . . 438 . . . . 68 . . . . 449 . . . . 106 446 347 188 259 222 673 Average Influence 89 | . 107 51 115 42 . 78 77 33 . . . . 67 . . . . 28 . . . . 60 . . . . 33 221 142 80 101 94 450 Maximum Alert Level 2 | . 1 . 1 . . . . . . . . . 2 . . . . . . . . . 2 . . . . . 2 1 . 1 1 2 Low Security (%) 90 | 100 84 100 92 100 . 100 100 100 . . . . 93 . . . . 100 . . . . 93 . . . . 100 54 82 100 87 96 7 Level 1 5 | . 15 . 7 . . . . . . . . . . . . . . . . . . . 2 . . . . . 34 17 . 12 3 28 Level 2 3 | . . . . . . . . . . . . . 6 . . . . . . . . . 4 . . . . . 10 . . . . 63 Level 3 . | . . . . . . . . . . . . . . . . . . . . . . . . . . . . . . . . . . . Level 4 . | . . . . . . . . . . . . . . . . . . . . . . . . . . . . . . . . . . . Level 5 . | . . . . . . . . . . . . . . . . . . . . . . . . . . . . . . . . . . . High Security . | . . . . . . . . . . . . . . . . . . . . . . . . . . . . . . . . . . . Max Security . | . . . . . . . . . . . . . . . . . . . . . . . . . . . . . . . . . . . Squads Dispatched 61 | . 3 . 2 . . . 9 9 . 1 . . 3 . . . . 1 . . . . 10 . . . . 4 . 6 2 5 4 2 Investigation 13 | . 2 . . . . . 2 3 . . . . 1 . . . . 1 . . . . 1 . . . . 1 . 1 . . 1 . Extermination 23 | . . . . . . . . 2 . . . . 2 . . . . . . . . . 6 . . . . 3 . 5 1 2 1 1 Reinforcement 17 | . 1 . 2 . . . 4 4 . . . . . . . . . . . . . . 3 . . . . . . . 1 . 2 . Assault 2 | . . . . . . . . . . 1 . . . . . . . . . . . . . . . . . . . . . . . 1 Garrison 6 | . . . . . . . 3 . . . . . . . . . . . . . . . . . . . . . . . . 3 . . Intercept . | . . . . . . . . . . . . . . . . . . . . . . . . . . . . . . . . . . . Construction Impeded . | . . . . . . . . . . . . . . . . . . . . . . . . . . . . . . . . . . . Haulers Reinforced 5 | . . . . . . . . 1 . . . . . . . . . . . . . . 2 . . . . . . . 1 . 1 . Stealth | -11 -10 -10 -9 -9 -9 -8 -8 -7 -7 -7 -7 -6 -6 -6 -6 -6 -5 -5 -5 -5 -5 -4 -4 -4 -4 -4 -3 -3 -3 -2 -2 -2 -1 -1 --------- Run | Scr Mat Min Mat Min Exi Min Mat Fac Low Low Zio Pro Fac Low Low Dat Pro Fac Upp Upp Zhi Pro Fac Upp Upp War Pro Res Tes Res Qua Sec Acc Com Distress Signals 12 | . 1 . 2 . . . 1 1 . . . . . . . . . . . . . . 2 . . . . . . 2 1 2 . . Communications Jammed . | . . . . . . . . . . . . . . . . . . . . . . . . . . . . . . . . . . . Distress Signals . | . . . . . . . . . . . . . . . . . . . . . . . . . . . . . . . . . . . Times Spotted 278 | . 23 5 28 3 . 9 25 10 2 2 . . 7 5 3 4 1 7 . . . 3 32 8 4 . 6 2 1 18 10 11 20 29 Peak Tracking Total 12 | . 5 3 5 1 . 3 5 2 1 3 . . 3 4 3 4 2 3 . . . 4 8 3 5 . 7 1 1 12 8 4 10 11 Tactical Retreats 44 | . . . 2 . . 1 . 2 2 . . . 1 1 . . . 3 . . . . 11 5 2 . 1 . . 4 1 2 4 2 Traps | -11 -10 -10 -9 -9 -9 -8 -8 -7 -7 -7 -7 -6 -6 -6 -6 -6 -5 -5 -5 -5 -5 -4 -4 -4 -4 -4 -3 -3 -3 -2 -2 -2 -1 -1 ------- Run | Scr Mat Min Mat Min Exi Min Mat Fac Low Low Zio Pro Fac Low Low Dat Pro Fac Upp Upp Zhi Pro Fac Upp Upp War Pro Res Tes Res Qua Sec Acc Com Traps Triggered 23 | . 2 . . . . . . 3 . . . . 1 . . . . 3 . . . . 5 . . . . . 1 2 1 3 2 . Indirectly . | . . . . . . . . . . . . . . . . . . . . . . . . . . . . . . . . . . . Trap Hack Attempts . | . . . . . . . . . . . . . . . . . . . . . . . . . . . . . . . . . . . Triggered . | . . . . . . . . . . . . . . . . . . . . . . . . . . . . . . . . . . . Disarmed . | . . . . . . . . . . . . . . . . . . . . . . . . . . . . . . . . . . . Reprogrammed . | . . . . . . . . . . . . . . . . . . . . . . . . . . . . . . . . . . . Reused . | . . . . . . . . . . . . . . . . . . . . . . . . . . . . . . . . . . . Traps Extracted . | . . . . . . . . . . . . . . . . . . . . . . . . . . . . . . . . . . . Installed . | . . . . . . . . . . . . . . . . . . . . . . . . . . . . . . . . . . . Triggered 15 | . . . . . . . . . . . . . . 1 . . . . . 4 . 4 . . . 6 . . . . . . . . Machines | -11 -10 -10 -9 -9 -9 -8 -8 -7 -7 -7 -7 -6 -6 -6 -6 -6 -5 -5 -5 -5 -5 -4 -4 -4 -4 -4 -3 -3 -3 -2 -2 -2 -1 -1 ---------- Run | Scr Mat Min Mat Min Exi Min Mat Fac Low Low Zio Pro Fac Low Low Dat Pro Fac Upp Upp Zhi Pro Fac Upp Upp War Pro Res Tes Res Qua Sec Acc Com Machines Disabled 19 | . . . 3 . . . 2 . . . . . 1 . . 1 . . . . . . . . . . . . 4 . 2 2 2 2 Max in Single Turn 2 | . . . 1 . . . 1 . . . . . 1 . . 1 . . . . . . . . . . . . 1 . 1 1 1 2 Garrison Access 13 | . . . . . . . . 1 . . . . . . . . . 4 . . . . 3 . . . . 3 1 1 . . . . Phase Generator 1 | . . . . . . . . . . . . . . . . . . . . . . . . . . . . . . . . . . 1 Energy Cycler 1 | . . . . . . . . . . . . . . . . . . . . . . . . . . . . . . . . . 1 . Machines Sabotaged . | . . . . . . . . . . . . . . . . . . . . . . . . . . . . . . . . . . . Garrisons Compromised . | . . . . . . . . . . . . . . . . . . . . . . . . . . . . . . . . . . . Overloaded Fab Kills . | . . . . . . . . . . . . . . . . . . . . . . . . . . . . . . . . . . . Fab Network Shutdowns 3 | . . . . . . . . . . . . . 1 . . . . . . . . . 1 . . . . . 1 . . . . . Hacking | -11 -10 -10 -9 -9 -9 -8 -8 -7 -7 -7 -7 -6 -6 -6 -6 -6 -5 -5 -5 -5 -5 -4 -4 -4 -4 -4 -3 -3 -3 -2 -2 -2 -1 -1 --------- Run | Scr Mat Min Mat Min Exi Min Mat Fac Low Low Zio Pro Fac Low Low Dat Pro Fac Upp Upp Zhi Pro Fac Upp Upp War Pro Res Tes Res Qua Sec Acc Com Machines Accessed 182 | . 6 . 7 . 2 . 8 10 1 . . . 18 . . 3 . 18 . 1 4 . 22 1 1 3 . 19 16 14 12 9 3 4 Terminals 119 | . 6 . 6 . . . 7 7 . . . . 12 . . . . 11 . . . . 15 1 . . . 10 11 9 10 8 2 4 Fabricators 16 | . . . . . . . . 1 . . . . 3 . . . . 3 . . . . 3 . . . . 3 1 2 . . . . Repair Stations 11 | . . . . . . . . 1 . . . . 2 . . . . . . . . . 1 . . . . 2 1 2 2 . . . Recycling Units . | . . . . . . . . . . . . . . . . . . . . . . . . . . . . . . . . . . . Scanalyzers 7 | . . . 1 . . . 1 . . . . . . . . . . . . . . . . . . . . 1 2 . . 1 1 . Garrison Access 14 | . . . . . . . . 1 . . . . 1 . . . . 4 . . . . 3 . . . . 3 1 1 . . . . Total Hacks 624 | . 18 . 24 . 2 . 24 25 1 . . . 65 . . 20 . 50 . 1 17 . 110 1 1 3 . 73 47 63 40 22 10 7 Successful 491 | . 8 . 15 . 2 . 11 10 1 . . . 46 . . 20 . 46 . 1 17 . 84 1 1 3 . 64 41 54 37 20 7 2 Failed 131 | . 10 . 9 . . . 13 15 . . . . 18 . . . . 3 . . . . 26 . . . . 9 6 9 3 2 3 5 Catastrophic 21 | . . . . . . . 2 4 . . . . 4 . . . . . . . . . 4 . . . . 3 1 1 . 1 . 1 Database Lockouts 3 | . . . . . . . . . . . . . 2 . . . . 1 . . . . . . . . . . . . . . . . Manual 301 | . 15 . 15 . 1 . 18 10 . . . . 30 . . . . 21 . . . . 67 . . . . 30 20 26 18 15 8 7 Terminals 432 | . 18 . 22 . . . 22 18 . . . . 49 . . . . 34 . . . . 83 1 . . . 38 33 42 36 20 9 7 Fabricators 85 | . . . . . . . . 4 . . . . 10 . . . . 12 . . . . 20 . . . . 21 4 14 . . . . Repair Stations 30 | . . . . . . . . 2 . . . . 4 . . . . . . . . . 4 . . . . 8 2 6 4 . . . Recycling Units . | . . . . . . . . . . . . . . . . . . . . . . . . . . . . . . . . . . . Scanalyzers 17 | . . . 2 . . . 2 . . . . . . . . . . . . . . . . . . . . 3 7 . . 2 1 . Garrison Access 15 | . . . . . . . . 1 . . . . 2 . . . . 4 . . . . 3 . . . . 3 1 1 . . . . Terminal Hacks 302 | . 3 . 7 . 2 . 6 3 1 . . . 30 . . 20 . 25 . 1 17 . 50 1 1 3 . 27 26 29 29 15 5 1 Record 19 | . . . . . 1 . . . . . . . . . . 11 . . . . 5 . . 1 . 1 . . . . . . . . Part Schematic 35 | . . . . . . . 2 . . . . . 1 . . 6 . 2 . . 4 . 10 . . . . 5 2 2 1 . . . Robot Analysis 4 | . . . . . . . . . . . . . . . . . . . . . 4 . . . . . . . . . . . . . Prototype ID Bank 31 | . . . 1 . . . . . . . . . 5 . . 3 . 3 . . 4 . 4 . . . . 1 4 3 2 1 . . Open Door 8 | . . . . . . . . . 1 . . . . . . . . . . 1 . . . . 1 2 . . . 1 . 2 . . Level Access Points 7 | . . . . . . . . . . . . . . . . . . 1 . . . . . . . . . . 1 1 1 2 1 . Branch Access Points 9 | . . . 1 . . . . . . . . . 2 . . . . 1 . . . . 1 . . . . 1 . 1 1 . 1 . Machine Index 7 | . . . . . . . . . . . . . . . . . . 1 . . . . 1 . . . . 1 1 1 1 1 . . Terminal Index 5 | . . . 1 . . . 1 . . . . . 1 . . . . . . . . . . . . . . . 1 1 . . . . Fabricator Index 3 | . . . . . . . . 1 . . . . 1 . . . . . . . . . . . . . . . . 1 . . . . Alert Level 21 | . 1 . 1 . . . 1 . . . . . 4 . . . . 3 . . . . 3 . . . . 3 1 2 2 . . . Unreport Threat 25 | . 1 . 1 . . . . . . . . . 5 . . . . 2 . . . . 6 . . . . 2 4 1 2 . 1 . Locate Traps 30 | . . . . . . . 1 1 . . . . 2 . . . . 4 . . . . 5 . . . . 4 2 4 3 3 1 . Extermination Status 1 | . . . . . . . . . . . . . . . . . . . . . . . . . . . . . . 1 . . . . Recall Investigation 1 | . . . . . . . . . . . . . . . . . . . . . . . . . . . . 1 . . . . . . Recall Extermination 16 | . . . . . . . . . . . . . 2 . . . . . . . . . 6 . . . . 3 . 3 1 1 . . Recall Reinforcements 4 | . 1 . . . . . . . . . . . . . . . . . . . . . 1 . . . . . . . 2 . . . Recall Assault 1 | . . . . . . . . . . . . . . . . . . . . . . . . . . . . . . . 1 . . . Hauler Manifests 9 | . . . 1 . . . 1 . . . . . 1 . . . . 1 . . . . 1 . . . . 1 1 1 1 . . . Registered Components 6 | . . . . . . . . . . . . . 1 . . . . 1 . . . . 1 . . . . 1 . 1 1 . . . Registered Prototypes 7 | . . . . . . . . 1 . . . . 1 . . . . 1 . . . . 1 . . . . 1 . 1 1 . . . Zone Layout 52 | . . . 1 . . . . . . . . . 4 . . . . 5 . . . . 10 . . . . 3 9 4 9 5 1 1 EX-Prototype ID Bank 1 | . . . . . 1 . . . . . . . . . . . . . . . . . . . . . . . . . . . . . Fabricator Hacks 58 | . . . . . . . . 3 . . . . 6 . . . . 7 . . . . 13 . . . . 16 2 11 . . . . Network Status 4 | . . . . . . . . . . . . . . . . . . 1 . . . . 1 . . . . 1 . 1 . . . . Load Schematic 22 | . . . . . . . . 1 . . . . 2 . . . . 3 . . . . 5 . . . . 6 1 4 . . . . Build 32 | . . . . . . . . 2 . . . . 4 . . . . 3 . . . . 7 . . . . 9 1 6 . . . . Repair Station Hacks 30 | . . . . . . . . 2 . . . . 4 . . . . . . . . . 4 . . . . 8 2 6 4 . . . Scan Component 15 | . . . . . . . . 1 . . . . 2 . . . . . . . . . 2 . . . . 4 1 3 2 . . . Repair 15 | . . . . . . . . 1 . . . . 2 . . . . . . . . . 2 . . . . 4 1 3 2 . . . Recycling Unit Hacks . | . . . . . . . . . . . . . . . . . . . . . . . . . . . . . . . . . . . Scanalyzer 15 | . . . 2 . . . 2 . . . . . . . . . . . . . . . . . . . . 3 6 . . 1 1 . Insert Component 9 | . . . 1 . . . 1 . . . . . . . . . . . . . . . . . . . . 2 3 . . 1 1 . Analyze 6 | . . . 1 . . . 1 . . . . . . . . . . . . . . . . . . . . 1 3 . . . . . Garrison Access Hacks 13 | . . . . . . . . 1 . . . . . . . . . 4 . . . . 3 . . . . 3 1 1 . . . . Seal Access 13 | . . . . . . . . 1 . . . . . . . . . 4 . . . . 3 . . . . 3 1 1 . . . . Unauthorized Hacks 73 | . 5 . 6 . . . 3 1 . . . . 6 . . . . 10 . . . . 14 . . . . 7 4 7 4 4 1 1 Terminals 49 | . 5 . 6 . . . 3 1 . . . . 4 . . . . 6 . . . . 7 . . . . 2 2 4 4 3 1 1 Track 13 | . 3 . 4 . . . 1 . . . . . . . . . . 1 . . . . 2 . . . . . . 1 . . . 1 Assimilate 1 | . . . . . . . 1 . . . . . . . . . . . . . . . . . . . . . . . . . . . Botnet 35 | . 2 . 2 . . . 1 1 . . . . 4 . . . . 5 . . . . 5 . . . . 2 2 3 4 3 1 . Fabricators 23 | . . . . . . . . . . . . . 2 . . . . 4 . . . . 7 . . . . 5 2 3 . . . . Report 2 | . . . . . . . . . . . . . . . . . . . . . . . 1 . . . . 1 . . . . . . Prioritize 8 | . . . . . . . . . . . . . 1 . . . . 1 . . . . 3 . . . . 1 1 1 . . . . Siphon 13 | . . . . . . . . . . . . . 1 . . . . 3 . . . . 3 . . . . 3 1 2 . . . . Repair Stations . | . . . . . . . . . . . . . . . . . . . . . . . . . . . . . . . . . . . Recycling Units . | . . . . . . . . . . . . . . . . . . . . . . . . . . . . . . . . . . . Scanalyzers 1 | . . . . . . . . . . . . . . . . . . . . . . . . . . . . . . . . 1 . . Researchers 1 | . . . . . . . . . . . . . . . . . . . . . . . . . . . . . . . . 1 . . Garrison Access . | . . . . . . . . . . . . . . . . . . . . . . . . . . . . . . . . . . . Data Cores Recovered 9 | . . . . . . . . . . . . . 3 . . . . 1 . . . . 2 . . . . . . . 2 . 1 . Used 5 | . . . . . . . . . . . . . 1 . . . . 1 . . . . . . . . . . . . 2 . 1 . Hacking Detections 113 | . 6 . 5 . . . 8 8 . . . . 15 . . . . 8 . . . . 16 . . . . 12 9 10 7 5 2 2 Full Trace Events 8 | . . . . . . . 2 2 . . . . . . . . . . . . . . 1 . . . . 1 . 1 . . 1 . Feedback Events 2 | . . . . . . . . . . . . . . . . . . . . . . . . . . . . 1 . 1 . . . . Corruption 2 | . . . . . . . . . . . . . . . . . . . . . . . . . . . . 1 . 1 . . . . Feedback Blocked . | . . . . . . . . . . . . . . . . . . . . . . . . . . . . . . . . . . . Robot Schematics Acquired . | . . . . . . . . . . . . . . . . . . . . . . . . . . . . . . . . . . . Robots Built . | . . . . . . . . . . . . . . . . . . . . . . . . . . . . . . . . . . . Matter . | . . . . . . . . . . . . . . . . . . . . . . . . . . . . . . . . . . . Time . | . . . . . . . . . . . . . . . . . . . . . . . . . . . . . . . . . . . Total Robot Build Rating . | . . . . . . . . . . . . . . . . . . . . . . . . . . . . . . . . . . . Part Schematics Acquired 41 | . . . 1 . . . 3 . . . . . 1 . . 6 . 2 . . 4 . 10 . . . . 6 5 2 1 . . . Parts Built 25 | . . . . . . . . 2 . . . . 4 . . . . 3 . . . . 5 . . . . 6 1 4 . . . . Matter 5967 | . . . . . . . . 438 . . . . 711 . . . . 556 . . . . 1315 . . . . 1627 312 1008 . . . . Time 1532 | . . . . . . . . 232 . . . . 310 . . . . 163 . . . . 245 . . . . 352 37 193 . . . . Total Part Build Rating 166 | . . . . . . . . 6 . . . . 20 . . . . 18 . . . . 35 . . . . 44 9 34 . . . . Parts Repaired 15 | . . . . . . . . 1 . . . . 2 . . . . . . . . . 2 . . . . 4 1 3 2 . . . Time 623 | . . . . . . . . 80 . . . . 82 . . . . . . . . . 55 . . . . 117 33 131 125 . . . Parts Recycled . | . . . . . . . . . . . . . . . . . . . . . . . . . . . . . . . . . . . Recycled Matter . | . . . . . . . . . . . . . . . . . . . . . . . . . . . . . . . . . . . Retrieved Matter . | . . . . . . . . . . . . . . . . . . . . . . . . . . . . . . . . . . . Retrieved Components . | . . . . . . . . . . . . . . . . . . . . . . . . . . . . . . . . . . . Parts Scanalyzed 6 | . . . 1 . . . 1 . . . . . . . . . . . . . . . . . . . . 1 3 . . . . . Part Schematics Acquired 6 | . . . 1 . . . 1 . . . . . . . . . . . . . . . . . . . . 1 3 . . . . . Parts Damaged 1 | . . . . . . . . . . . . . . . . . . . . . . . . . . . . . 1 . . . . . Bothacking | -11 -10 -10 -9 -9 -9 -8 -8 -7 -7 -7 -7 -6 -6 -6 -6 -6 -5 -5 -5 -5 -5 -4 -4 -4 -4 -4 -3 -3 -3 -2 -2 -2 -1 -1 ------------ Run | Scr Mat Min Mat Min Exi Min Mat Fac Low Low Zio Pro Fac Low Low Dat Pro Fac Upp Upp Zhi Pro Fac Upp Upp War Pro Res Tes Res Qua Sec Acc Com Used RIF Installer . | . . . . . . . . . . . . . . . . . . . . . . . . . . . . . . . . . . . Robots Hacked . | . . . . . . . . . . . . . . . . . . . . . . . . . . . . . . . . . . . Non-combat . | . . . . . . . . . . . . . . . . . . . . . . . . . . . . . . . . . . . Combat . | . . . . . . . . . . . . . . . . . . . . . . . . . . . . . . . . . . . Robot Hacks Applied . | . . . . . . . . . . . . . . . . . . . . . . . . . . . . . . . . . . . Relay Couplers Released 4 | . . . . . . . . . . . . . . . . . . . . . . . 4 . . . . . . . . . . . Programmers 4 | . . . . . . . . . . . . . . . . . . . . . . . 4 . . . . . . . . . . . Robots Rewired . | . . . . . . . . . . . . . . . . . . . . . . . . . . . . . . . . . . . Allies Hacked . | . . . . . . . . . . . . . . . . . . . . . . . . . . . . . . . . . . . Hacks Repelled . | . . . . . . . . . . . . . . . . . . . . . . . . . . . . . . . . . . . Allies | -11 -10 -10 -9 -9 -9 -8 -8 -7 -7 -7 -7 -6 -6 -6 -6 -6 -5 -5 -5 -5 -5 -4 -4 -4 -4 -4 -3 -3 -3 -2 -2 -2 -1 -1 -------- Run | Scr Mat Min Mat Min Exi Min Mat Fac Low Low Zio Pro Fac Low Low Dat Pro Fac Upp Upp Zhi Pro Fac Upp Upp War Pro Res Tes Res Qua Sec Acc Com Total Allies 12 | . . 3 . . . . 1 . . . 2 . . . . . . . . . . . . . . . . . . . . . . 6 Largest Group 3 | . . 3 2 . . . 1 . . . 2 2 . . . . . . . . . . . . . . . . . . . . . . Highest-Rated Group 51 | . . 40 32 . . . 10 . . . 51 51 . . . . . . . . . . . . . . . . . . . . . . Highest-Rated Ally 37 | . . 16 16 . . . 10 . . . 37 37 . . . . . . . . . . . . . . . . . . . . . . Total Orders . | . . . . . . . . . . . . . . . . . . . . . . . . . . . . . . . . . . . Ally Attacks 36 | . . 8 19 . . . . . . . . 5 . . . . . . . . . . . . . . . . . . . . . 4 Total Damage 324 | . . 83 180 . . . . . . . . 12 . . . . . . . . . . . . . . . . . . . . . 49 Kills 5 | . . 3 2 . . . . . . . . . . . . . . . . . . . . . . . . . . . . . . . Allies Corrupted . | . . . . . . . . . . . . . . . . . . . . . . . . . . . . . . . . . . . Allies Melted . | . . . . . . . . . . . . . . . . . . . . . . . . . . . . . . . . . . . Intel | -11 -10 -10 -9 -9 -9 -8 -8 -7 -7 -7 -7 -6 -6 -6 -6 -6 -5 -5 -5 -5 -5 -4 -4 -4 -4 -4 -3 -3 -3 -2 -2 -2 -1 -1 ------- Run | Scr Mat Min Mat Min Exi Min Mat Fac Low Low Zio Pro Fac Low Low Dat Pro Fac Upp Upp Zhi Pro Fac Upp Upp War Pro Res Tes Res Qua Sec Acc Com Robot Analysis Total 4 | . . . . . . . . . . . . . . . . . . . . . 4 . . . . . . . . . . . . . Derelict Logs Recovered 16 | . . 2 . 1 . . . . . 1 1 1 . 2 . . 2 . 1 2 . . . 2 1 . . . . . . . . . Drone Launches . | . . . . . . . . . . . . . . . . . . . . . . . . . . . . . . . . . . . Drone Recoveries . | . . . . . . . . . . . . . . . . . . . . . . . . . . . . . . . . . . . Exploration | -11 -10 -10 -9 -9 -9 -8 -8 -7 -7 -7 -7 -6 -6 -6 -6 -6 -5 -5 -5 -5 -5 -4 -4 -4 -4 -4 -3 -3 -3 -2 -2 -2 -1 -1 ------------- Run | Scr Mat Min Mat Min Exi Min Mat Fac Low Low Zio Pro Fac Low Low Dat Pro Fac Upp Upp Zhi Pro Fac Upp Upp War Pro Res Tes Res Qua Sec Acc Com Turns Passed 23138 | 50 784 872 1006 171 315 301 2339 1303 303 197 261 141 1551 343 145 96 101 1316 343 490 82 164 3306 445 167 222 148 1237 775 1995 724 537 388 520 Spaces Moved 31807 | 37 445 653 616 141 311 129 1289 1612 791 555 654 325 2371 497 311 125 267 2518 375 643 197 250 4291 884 391 591 425 2246 1510 2368 1302 1168 761 758 Core 5 | 4 . . . . . . . . . . . . . . . . . . . . . . . . . . . . . . . . . 1 Treads 20 | 4 5 . . . . . 11 . . . . . . . . . . . . . . . . . . . . . . . . . . . Legs . | . . . . . . . . . . . . . . . . . . . . . . . . . . . . . . . . . . . Wheels 3597 | 29 440 653 616 141 311 129 1278 . . . . . . . . . . . . . . . . . . . . . . . . . . . Hover 354 | . . . . . . . . 354 . . . . . . . . . . . . . . . . . . . . . . . . . . Flight 27831 | . . . . . . . . 1258 791 555 654 325 2371 497 311 125 267 2518 375 643 197 250 4291 884 391 591 425 2246 1510 2368 1302 1168 761 757 Fastest Speed 19 | 50 100 120 100 100 100 100 100 27 26 26 26 26 26 26 26 26 26 26 29 29 26 26 26 26 26 26 29 23 23 22 19 19 19 19 Average Speed 34 | 101 115 120 107 100 100 100 108 30 26 26 26 26 26 26 26 26 26 27 29 29 27 26 26 26 26 28 29 23 23 22 19 19 19 20 Slowest Speed 210 | 160 180 120 110 100 100 100 210 45 27 26 26 26 26 26 26 26 26 29 29 29 29 26 29 26 26 29 32 29 99 24 22 90 19 200 Overloaded Moves . | . . . . . . . . . . . . . . . . . . . . . . . . . . . . . . . . . . . Propulsion Burnouts . | . . . . . . . . . . . . . . . . . . . . . . . . . . . . . . . . . . . Robots Hopped 77 | . . . . . . . . 1 . . . . 2 . . . . . . . . . 14 . . 1 . 13 1 21 11 2 7 4 Cave-ins Triggered . | . . . . . . . . . . . . . . . . . . . . . . . . . . . . . . . . . . . Teleports 1 | . . . . . . . . . . . . . . . . . . . . . 1 . . . . . . . . . . . . . Exploration Rate (%) 60 | 3 71 97 47 32 70 43 63 39 89 83 81 58 57 60 58 77 49 47 50 84 60 49 78 80 57 90 62 52 92 48 85 61 20 33 Regions Visited 34 Branch Regions 24 Pre-discovered Areas 13 | . . 2 . 2 1 . . . . 1 2 . . . . 1 . . . 1 3 . . . . . . . . . . . . . Known Exits Taken 28 | . . . 1 . . . 1 1 1 1 1 1 1 1 1 1 1 1 1 1 1 1 1 1 1 1 1 1 1 1 1 1 1 . Unknown Exits Taken 6 | 1 1 1 . 1 1 1 . . . . . . . . . . . . . . . . . . . . . . . . . . . . Scrap Searched 25 | . . 1 . . . 1 . . 1 2 5 3 . 1 2 . 2 . . 1 . . . 2 3 . 1 . . . . . . . Spaces Dug 459 | . . . . . . . 34 23 5 . . 1 41 10 4 11 3 44 6 20 . . 83 8 . 2 . 19 16 64 21 7 10 27 Terrain Destroyed 740 | . . . 4 . . . 43 23 5 . . 1 41 63 4 11 3 57 6 20 . . 83 8 109 2 . 19 16 82 21 9 25 85 Melee 456 | . . . . . . . 34 23 5 . . 1 41 10 4 11 3 44 6 20 . . 83 8 . 2 . 19 16 64 21 4 10 27 Projectile 10 | . . . 4 . . . . . . . . . . . . . . . . . . . . . . . . . . . . 5 . 1 AOE 274 | . . . . . . . 9 . . . . . . 53 . . . 13 . . . . . . 109 . . . . 18 . . 15 57 Actions | -11 -10 -10 -9 -9 -9 -8 -8 -7 -7 -7 -7 -6 -6 -6 -6 -6 -5 -5 -5 -5 -5 -4 -4 -4 -4 -4 -3 -3 -3 -2 -2 -2 -1 -1 --------- Run | Scr Mat Min Mat Min Exi Min Mat Fac Low Low Zio Pro Fac Low Low Dat Pro Fac Upp Upp Zhi Pro Fac Upp Upp War Pro Res Tes Res Qua Sec Acc Com Total 42522 | 46 621 720 849 169 315 284 2044 2308 875 604 746 380 3198 684 365 157 292 3043 597 914 222 348 6270 1082 447 641 443 2889 1903 3777 1757 1459 988 1085 Wait 9058 | . 77 35 109 28 . 144 570 581 78 47 87 49 719 172 49 16 21 400 216 251 4 99 1805 184 50 37 17 592 338 1316 410 203 155 199 Move 31628 | 36 444 652 615 140 310 128 1288 1609 790 554 653 324 2366 496 310 124 266 2517 374 642 196 249 4263 883 390 588 424 2219 1507 2328 1281 1163 747 752 Hop 68 | . . . . . . . . 1 . . . . 2 . . . . . . . . . 13 . . 1 . 13 1 18 9 2 6 2 Pick Up 138 | 4 21 3 13 . 2 . 12 7 . . 2 2 9 . . . . 9 . 1 3 . 11 . . 1 . 11 9 6 5 2 5 . Fast Attach 113 | 6 1 . 6 . . 1 10 7 . 1 . . 18 . . . . 5 . . 7 . 11 . . 5 . 7 8 5 6 7 2 . Attach 51 | . 2 . 2 . . 2 2 9 1 . . . . . . . 2 2 . . . . 4 . . . . 4 . 2 2 1 5 11 Detach 5 | . . . 1 . . . 1 1 . . . . . . . . . . . . . . . . . . . . . . . . 1 1 Swap 111 | . 7 6 12 . 1 1 23 6 . 1 1 2 4 1 2 . . 6 . . 2 . 8 2 1 1 . 4 1 5 3 5 4 2 Drop 221 | . 14 8 27 . 2 . 29 23 . . 3 2 20 . . . . 9 . . 8 . 12 2 . 6 . 7 14 8 11 7 5 4 Fire 231 | . 55 16 64 1 . 8 62 . . 1 . . . 4 . . . 1 . . . . . . 6 . . . . 1 . 6 1 5 Melee 779 | . . . . . . . 47 64 6 . . 1 60 11 4 17 3 58 7 20 2 . 128 11 . 2 2 32 25 88 30 27 25 109 Ram . | . . . . . . . . . . . . . . . . . . . . . . . . . . . . . . . . . . . Kick . | . . . . . . . . . . . . . . . . . . . . . . . . . . . . . . . . . . . Crush . | . . . . . . . . . . . . . . . . . . . . . . . . . . . . . . . . . . . Escape Stasis 119 | . . . . . . . . . . . . . . . . . . 36 . . . . 15 . . . . . . . . 36 32 . Rewire . | . . . . . . . . . . . . . . . . . . . . . . . . . . . . . . . . . . . Trap . | . . . . . . . . . . . . . . . . . . . . . . . . . . . . . . . . . . . Miscellaneous . | . . . . . . . . . . . . . . . . . . . . . . . . . . . . . . . . . . . Route ------- -11/Scrapyard -10/Materials (discovered 3 exits: *Mat / [*Min x2]) -10/Mines (discovered 2 exits: *Mat x2) -9/Materials (discovered 4 exits: *Mat / *Min / *Sto x2) -9/Mines -9/Exiles (discovered 2 exits: [*Min x2]) -8/Mines -8/Materials (discovered 2 exits: *Fac x2) -7/Factory (discovered 3 exits: *Fac / *Low x2) -7/Lower Caves -7/Lower Caves -7/Zion -6/Proximity Caves -6/Factory (discovered 6 exits: *Fac x2 / *Low x2 / *Ext x2) -6/Lower Caves -6/Lower Caves (discovered 2 exits: *Fac / *Dat) -6/Data Miner -5/Proximity Caves -5/Factory (discovered 6 exits: *Fac x4 / *Upp x2) -5/Upper Caves -5/Upper Caves (discovered 2 exits: *Fac / *Zhi) -5/Zhirov -4/Proximity Caves -4/Factory (discovered 5 exits: *Res x3 / *Upp x2) -4/Upper Caves -4/Upper Caves -4/Warlord -3/Proximity Caves -3/Research (discovered 5 exits: *Res x2 / Arm / *Tes x2) -3/Testing -2/Research (discovered 5 exits: Acc x3 / *Qua x2) -2/Quarantine (discovered 2 exits: *Acc / *Sec) -2/Section 7 -1/Access (discovered 2 exits: Sur / *Com) -1/Command History --------- Turn | Location | Event 22 | -11/Scrapyard | Discovered new exit (range 16) 51 | -11/Scrapyard | Entered Materials 98 | -10/Materials | Discovered new exit (range 10) 310 | -10/Materials | Build established: Mutant 396 | -10/Materials | Discovered new exit (range 14) 630 | -10/Materials | Discovered new exit (range 16) 835 | -10/Materials | Entered Mines 865 | -10/Mines | Met a Derelict bent on vengeance 881 | -10/Mines | Assisted by bots powering up and referring to "LRC-V3" 969 | -10/Mines | Discovered new exit (range 11) 1077 | -10/Mines | Learned location of Zion (-7) 1116 | -10/Mines | Discovered new exit (range 10) 1452 | -10/Mines | Found a damaged Exp. Sensor Array with a note attached 1471 | -10/Mines | Found Prototype Device 1707 | -10/Mines | Entered Materials 1707 | -9/Materials | Accompanied by 2 allies 1707 | -9/Materials | Evolved 2 slots: Propulsion x1, Utility x1 1843 | -9/Materials | Discovered new exit (range 8) 1874 | -9/Materials | Met 8R-AWN 1926 | -9/Materials | Build established: Scavenger-Mutant 2102 | -9/Materials | Identified Exp. Sensor Array 2142 | -9/Materials | Discovered new exit (range 15) 2190 | -9/Materials | Discovered new exit (range 9) 2255 | -9/Materials | Build established: Mutant 2561 | -9/Materials | Identified exit to Mines 2561 | -9/Materials | Identified exit to Storage 2713 | -9/Materials | Entered Mines 2714 | -9/Mines | Learned location of Storage (-9) 2714 | -9/Mines | Followed 8R-AWN into the Mines 2841 | -9/Mines | Assembled infested the area 2880 | -9/Mines | Discovered new exit (range 5) 2884 | -9/Mines | Entered Exiles 2897 | -9/Exiles | Discovered new exit (range 15) 2909 | -9/Exiles | Welcomed by 8R-AWN 2925 | -9/Exiles | Met EX-HEX 2971 | -9/Exiles | Met EX-DEC 3053 | -9/Exiles | Met EX-BIN 3067 | -9/Exiles | Aligned with FarCom system 3068 | -9/Exiles | Given EX-Vault access code 3092 | -9/Exiles | Opened EX-Vault 3102 | -9/Exiles | Found Latent Energy Streamer 3104 | -9/Exiles | Found Deploy-a-Sentry 3126 | -9/Exiles | Warned to stay clear of 0b10 Research branches 3191 | -9/Exiles | Discovered new exit (range 10) 3199 | -9/Exiles | Stole two prototypes: Latent Energy Streamer, Deploy-a-Sentry 3199 | -9/Exiles | Entered Mines 3470 | -8/Mines | Discovered new exit (range 11) 3500 | -8/Mines | Entered Materials 3500 | -8/Materials | Evolved 2 slots: Utility x2 3946 | -8/Materials | Discovered new exit (range 9) 4433 | -8/Materials | Garrison activated, responded to threat 5475 | -8/Materials | Discovered new exit (range 16) 5778 | -8/Materials | Build established: Scavenger-Mutant 5838 | -8/Materials | Identified exit to Factory 5839 | -8/Materials | Entered Factory 5839 | -7/Factory | Evolved 2 slots: Power x1, Propulsion x1 5841 | -7/Factory | FarCom data flow suspended 5949 | -7/Factory | Discovered new exit (range 15) 6062 | -7/Factory | Fabricated Imp. VTOL Module (x1) 6179 | -7/Factory | Fabricated Imp. VTOL Module? 6358 | -7/Factory | Build established: Scavenger-Sprinter 6752 | -7/Factory | Repaired Exp. Sensor Array 6885 | -7/Factory | Discovered new exit (range 9) 6888 | -7/Factory | Identified exit to Factory 7081 | -7/Factory | Build established: Scout 7133 | -7/Factory | Discovered new exit (range 10) 7135 | -7/Factory | Identified exit to Lower Caves 7142 | -7/Factory | Entered Lower Caves 7184 | -7/Lower Caves | Spotted B-75 Beast 7427 | -7/Lower Caves | Discovered new exit (range 16) 7430 | -7/Lower Caves | Identified exit to Lower Caves 7445 | -7/Lower Caves | Entered another Lower Caves area 7505 | -7/Lower Caves | Spotted B-75 Beast 7558 | -7/Lower Caves | Encountered a Warlord checkpoint 7560 | -7/Lower Caves | Discovered new exit (range 16) 7626 | -7/Lower Caves | Attracted the attention of an 0b10 outpost 7642 | -7/Lower Caves | Identified exit to Zion 7642 | -7/Lower Caves | Entered Zion 7649 | -7/Zion | Acquired unknown access codes intercepted by a Zionite 7709 | -7/Zion | Learned Factory emergency access door positions 7729 | -7/Zion | Gained Derelict followers 7755 | -7/Zion | Learned Factory emergency access door positions 7804 | -7/Zion | Discovered new exit (range 13) 7818 | -7/Zion | Identified exit to Proximity Caves 7903 | -7/Zion | Entered Proximity Caves 7903 | -6/Proximity Caves | Accompanied by 2 allies 8041 | -6/Proximity Caves | Discovered exit to Factory (range 11) 8044 | -6/Proximity Caves | Entered Factory 8044 | -6/Factory | Evolved 2 slots: Utility x2 8045 | -6/Factory | Identified exit to Lower Caves 8254 | -6/Factory | Found Prototype Processor 8254 | -6/Factory | Identified Exp. Signal Interpreter 8257 | -6/Factory | Identified exit to Extension 8285 | -6/Factory | Discovered new exit (range 7) 8288 | -6/Factory | Identified exit to Factory 8461 | -6/Factory | Repaired Imp. VTOL Module 8762 | -6/Factory | Build established: Hacker-Scout 8850 | -6/Factory | Central database locked down 9056 | -6/Factory | Fabricated Imp. Hacking Suite (x1) 9121 | -6/Factory | Fabricated Exp. Sensor Array (x1) 9152 | -6/Factory | Fabricated Imp. Hacking Suite? 9273 | -6/Factory | Build established: Hacker-Sprinter 9328 | -6/Factory | Fabricated Imp. Hacking Suite (x1) 9369 | -6/Factory | Repaired Great Axe 9455 | -6/Factory | Discovered exit to Factory (range 15) 9456 | -6/Factory | Local fabrication network quarantined 9595 | -6/Factory | Entered Lower Caves 9617 | -6/Lower Caves | Learned location of 1 exit from Factory 9648 | -6/Lower Caves | Spotted B-75 Beast 9683 | -6/Lower Caves | Encountered a Warlord checkpoint 9690 | -6/Lower Caves | Learned location of 1 exit from Factory 9926 | -6/Lower Caves | Discovered new exit (range 12) 9938 | -6/Lower Caves | Identified exit to Lower Caves 9938 | -6/Lower Caves | Entered another Lower Caves area 9941 | -6/Lower Caves | Discovered exit to Factory (range 14) 10065 | -6/Lower Caves | Discovered new exit (range 11) 10082 | -6/Lower Caves | Identified exit to Data Miner 10083 | -6/Lower Caves | Entered Data Miner 10083 | -6/Data Miner | Discovered new exit (range 6) 10088 | -6/Data Miner | Met Data Miner 10094 | -6/Data Miner | Learned location of Section 7 (-2) 10094 | -6/Data Miner | Acquired the access code to Warlord's prototype stash 10098 | -6/Data Miner | Received God Mode back door access code from Data Miner 10108 | -6/Data Miner | Data Conduit disabled 10179 | -6/Data Miner | Identified exit to Proximity Caves 10179 | -6/Data Miner | Entered Proximity Caves 10259 | -5/Proximity Caves | Learned location of 1 exit from Factory 10269 | -5/Proximity Caves | Spotted UQ-C7R(f) 10275 | -5/Proximity Caves | Discovered exit to Factory (range 5) 10277 | -5/Proximity Caves | Learned location of 1 exit from Factory 10280 | -5/Proximity Caves | Entered Factory 10280 | -5/Factory | Evolved 2 slots: Utility x2 10281 | -5/Factory | Identified exit to Factory 10281 | -5/Factory | Identified exit to Upper Caves 10290 | -5/Factory | Central database locked down 10349 | -5/Factory | Fabricated Adv. System Shield (x1) 10508 | -5/Factory | Fabricated Mni. Smartbomb Launcher (x1) 10661 | -5/Factory | Build established: Wizard-Sprinter 10911 | -5/Factory | Fabricated Adv. System Shield (x1) 11596 | -5/Factory | Entered Upper Caves 11898 | -5/Upper Caves | Learned Factory terminal intel 11938 | -5/Upper Caves | Discovered new exit (range 5) 11938 | -5/Upper Caves | Identified exit to Upper Caves 11939 | -5/Upper Caves | Entered another Upper Caves area 12025 | -5/Upper Caves | Discovered exit to Factory (range 5) 12026 | -5/Upper Caves | Learned location of Armory (-3) 12425 | -5/Upper Caves | Discovered new exit (range 13) 12428 | -5/Upper Caves | Identified exit to Zhirov 12429 | -5/Upper Caves | Entered Zhirov 12429 | -5/Zhirov | Discovered new exit (range 3) 12435 | -5/Zhirov | Met Zhirov 12441 | -5/Zhirov | Learned location of Quarantine (-2) 12441 | -5/Zhirov | Learned location of Testing (-3) 12441 | -5/Zhirov | Learned location of Command (-1) 12443 | -5/Zhirov | Zhirov requested help retrieving the SGEMP Prototype 12448 | -5/Zhirov | Found Alien Artifact 12448 | -5/Zhirov | Identified Integrated Reactor 12448 | -5/Zhirov | Installed Integrated Reactor, increased core energy generation (+2%) 12455 | -5/Zhirov | Found Alien Artifact 12455 | -5/Zhirov | Identified Transdimensional Reconstructor 12455 | -5/Zhirov | Warped through subspace 12511 | -5/Zhirov | Identified exit to Proximity Caves 12511 | -5/Zhirov | Entered Proximity Caves 12657 | -4/Proximity Caves | Discovered exit to Factory (range 13) 12675 | -4/Proximity Caves | Entered Factory 12675 | -4/Factory | Evolved 2 slots: Utility x2 12676 | -4/Factory | Loaded intel: 20 terminal locations 12688 | -4/Factory | Identified exit to Upper Caves 13004 | -4/Factory | Discovered new exit (range 3) 13172 | -4/Factory | Repaired Gravity Neutralizing Apparatus 13202 | -4/Factory | Repaired Ionic Axe 14000 | -4/Factory | Discovered new exit (range 7) 14043 | -4/Factory | Fabricated Exp. Hacking Suite (x1) 14089 | -4/Factory | Fabricated Exp. Hacking Suite (x1) 14235 | -4/Factory | Identified exit to Research 15505 | -4/Factory | Fabricated Nanosword? 15578 | -4/Factory | Fabricated Exp. Utility Shielding? 15722 | -4/Factory | Fabricated Nanosword? 15758 | -4/Factory | Local fabrication network quarantined 15810 | -4/Factory | Discovered exit to Research (range 15) 15981 | -4/Factory | Entered Upper Caves 16176 | -4/Upper Caves | Learned location of 1 exit from Research 16284 | -4/Upper Caves | Learned 4 Research zone layouts 16425 | -4/Upper Caves | Discovered new exit (range 4) 16426 | -4/Upper Caves | Identified exit to Upper Caves 16426 | -4/Upper Caves | Entered another Upper Caves area 16474 | -4/Upper Caves | Learned Research garrison access intel 16547 | -4/Upper Caves | Discovered new exit (range 9) 16587 | -4/Upper Caves | Identified exit to Warlord 16593 | -4/Upper Caves | Entered Warlord 16602 | -4/Warlord | System corruption cleaned by Quarantine Array 16641 | -4/Warlord | Found Prototype Device 16641 | -4/Warlord | Identified System Purifier 16654 | -4/Warlord | Found Prototype Processor 16724 | -4/Warlord | Visited the Vortex Lab 16739 | -4/Warlord | Warlord's base attacked by MAIN.C 16803 | -4/Warlord | Opened side exit 16809 | -4/Warlord | Discovered new exit (range 9) 16810 | -4/Warlord | Identified exit to Proximity Caves 16815 | -4/Warlord | Entered Proximity Caves 16868 | -3/Proximity Caves | Spotted J5-HS8(f) 16870 | -3/Proximity Caves | Encountered a Master Thief 16870 | -3/Proximity Caves | Spotted Z8-TR7(f) 16871 | -3/Proximity Caves | Encountered a Master Thief 16906 | -3/Proximity Caves | Attracted the attention of an 0b10 checkpoint 16922 | -3/Proximity Caves | Electron Diverter stolen by Master Thief 16923 | -3/Proximity Caves | Electron Diverter stolen by Master Thief 16959 | -3/Proximity Caves | Discovered exit to Research (range 15) 16963 | -3/Proximity Caves | Entered Research 16963 | -3/Research | Evolved 2 slots: Utility x2 16964 | -3/Research | Identified exit to Research 16966 | -3/Research | Loaded intel: 3 garrison access locations 17014 | -3/Research | Fabricated Exp. Cesium-ion Thruster (x1) 17063 | -3/Research | Fabricated Mni. Fusion Reactor (x1) 17109 | -3/Research | Fabricated Mni. Fusion Reactor (x1) 17162 | -3/Research | Fabricated Quantum Shading Machine (x1) 17181 | -3/Research | Identified exit to Armory 17181 | -3/Research | Identified exit to Testing 17387 | -3/Research | Identified Exp. Targeting Computer 17516 | -3/Research | Repaired Cld. Nuclear Pulse Thruster 17546 | -3/Research | Repaired Cld. Nuclear Pulse Thruster 17663 | -3/Research | Fabricated Femtoactuators (x1) 17810 | -3/Research | Repaired Gravity Flail 17838 | -3/Research | Repaired Exp. Sensor Array 18065 | -3/Research | Fabricated Exp. Melee Analysis Suite (x1) 18109 | -3/Research | Discovered exit to Research (range 15) 18200 | -3/Research | Entered Testing 18221 | -3/Testing | Found Prototype Device 18221 | -3/Testing | Identified AEGIS Remote Shield 18272 | -3/Testing | Fabricated Exp. Armor Integrity Analyzer (x1) 18282 | -3/Testing | Spotted PY-ZRT5NT2Y9L 18298 | -3/Testing | Local fabrication network quarantined 18552 | -3/Testing | Found Prototype Ballistic Gun 18552 | -3/Testing | Identified Hyp. Multirail 18754 | -3/Testing | Repaired Mni. Fusion Reactor 18935 | -3/Testing | Found Prototype Slashing Weapon 18939 | -3/Testing | Identified Vibroblade 18975 | -3/Testing | Entered Research 18975 | -2/Research | Evolved 2 slots: Utility x2 19003 | -2/Research | Identified exit to Quarantine 19077 | -2/Research | Identified exit to Access 19853 | -2/Research | Found Exp. Hacking Suite 19889 | -2/Research | Fabricated Adv. Powered Armor (x1) 19921 | -2/Research | Fabricated Adv. Powered Armor (x1) 19978 | -2/Research | Fabricated Dimensional Manipulator (x1) 20239 | -2/Research | Repaired Mni. Fusion Reactor 20412 | -2/Research | Repaired Cld. Impulse Thruster 20458 | -2/Research | Repaired Cld. Nuclear Pulse Thruster 20892 | -2/Research | Fabricated Exp. Force Field? 20970 | -2/Research | Entered Quarantine 20974 | -2/Quarantine | Found Alien Impact Weapon 20974 | -2/Quarantine | Identified Core Stripper 20998 | -2/Quarantine | Found Transdimensional Reconstructor 21003 | -2/Quarantine | Found Transdimensional Reconstructor 21359 | -2/Quarantine | Repaired Exp. Utility Shielding 21436 | -2/Quarantine | Spotted Alpha 7 21639 | -2/Quarantine | Repaired Mni. Fusion Reactor 21653 | -2/Quarantine | Spotted Fortress 21666 | -2/Quarantine | Discovered new exit (range 5) 21666 | -2/Quarantine | Identified exit to Section 7 21694 | -2/Quarantine | Entered Section 7 21746 | -2/Section 7 | Spotted S7 Guard 21874 | -2/Section 7 | Found Alien Artifact 21884 | -2/Section 7 | Spotted B-90 Cyclops 21922 | -2/Section 7 | Identified Integrated Heat Negator 21922 | -2/Section 7 | Installed Integrated Heat Negator, increased core heat dissipation (+2%) 21990 | -2/Section 7 | Spotted B-90 Cyclops 22017 | -2/Section 7 | Garrison activated, responded to threat 22100 | -2/Section 7 | Spotted B-99 Colossus 22117 | -2/Section 7 | Found Alien Artifact 22117 | -2/Section 7 | Identified Core Reset Matrix 22117 | -2/Section 7 | Used Core Reset Matrix 22121 | -2/Section 7 | Sensed 18 artifacts in vicinity 22130 | -2/Section 7 | Found LRC Matter Compressor 22130 | -2/Section 7 | Installed LRC Matter Compressor, increased matter storage capacity (+125) 22132 | -2/Section 7 | Found LRC Matter Compressor 22132 | -2/Section 7 | Installed LRC Matter Compressor, increased matter storage capacity (+125) 22231 | -2/Section 7 | Entered Access 22231 | -1/Access | Evolved 2 slots: Utility x2 22271 | -1/Access | Identified exit to Surface 22271 | -1/Access | Identified exit to Command 22512 | -1/Access | Energy Cycler disabled 22611 | -1/Access | Spotted B-99 Colossus 22619 | -1/Access | Entered Command 22646 | -1/Command | Spotted B-99 Colossus 22676 | -1/Command | Spotted B-99 Colossus 22787 | -1/Command | Phase Generator disabled 22899 | -1/Command | First assault squad dispatched 23000 | -1/Command | Spotted Combat Programmer 23030 | -1/Command | Met MAIN.C 23033 | -1/Command | 0b10 Conduit disabled 23065 | -1/Command | System corruption reached 10% 23082 | -1/Command | Destroyed MAIN.C Shell 23083 | -1/Command | MAIN.C activated Command garrisons 23110 | -1/Command | Spotted Combat Programmer 23115 | -1/Command | Spotted M Guard 23116 | -1/Command | Spotted M Guard 23130 | -1/Command | Core integrity fell below 50% 23133 | -1/Command | Emitted hypermatrix ping 23133 | -1/Command | System corruption reached 30% 23136 | -1/Command | Core integrity fell below 20% 23138 | -1/Command | Assembled emerged from beneath the floor 23139 | -1/Command | Destroyed by MAIN.C with Omega Cannon Last Messages --------------- 23136_ Thunder Hammer destroyed. 23136_ Exp. Hacking Suite destroyed. 23136_ Adv. Melee Analysis Suite destroyed. 23136_ Knocked back. 23136_ C-30 ARC bursts open, deploying its payload. 23136_ H-88 Terminator unfolds itself. 23137_ Slug penetrates Combat Programmer. 23137_ Slug penetrates 0b10 Conduit. 23137_ Penetrated by Slug. 23138_ Assembled emerge from beneath the floor. 23138_ Slug penetrates M Guard. 23138_ Penetrated by Slug. 23138_ Penetrated by EMDS Slug. 23138_ Critical hit. 23138_ Core Stripper destroyed. 23138_ Penetrated by EMDS Slug. 23138_ as-22344 suffers critical hit. 23138_ as-22344 destroyed. 23138_ as-61855 destroyed. 23138_ as-63445 destroyed. Map ----- +----------------------------------------------------+ | ?????????????????????????????????????????????????? | | ?????????????????????????????????????????????????? | | ?????????????????????????????????????????????????? | | ?????????????????????????????????????????????????? | | ?????????????????????????????????????????????????? | | ?????????????????????????????????????????????????? | | ?????????????????????????????????????????????????? | | ?????????????????????????????????????????????????? | | ?????????????????????????????????????????????????? | | ?????????????????????????????????????????????????? | | ?????????????????????????????????????????????????? | | ?????????????????????????????????????????????????? | | ?????????????????????????????????????????????????? | | ?????????????????????????????????????????????????? | | ?????????????????????????????????????????????????? | | ?????????????????????????????????????????????????? | | ?????????????????????????????????????????????????? | | ????????????????################?????????????????? | | ???????????????"" "" #?????????????????? | | ??????????????? "" #?????????????????? | | ??????????????? "" ################### | | ??????????"???"""""" / | | ??????????" " "" h /% | | ??????????"" """""" h h/%% | | ??????????"" """""" ahM h################### | | ?????????# " """" @p #?????????????????? | | ?????????# p !aYp #?????????????????? | | ?????????# " !] a Yh #?????????????????? | | ?????????#""""" [%! [ "#?????????????????? | | ?????????#"" =* ""#?????????????????? | | ?????????# """#?????????????????? | | ?????????# " #?????????????????? | | ?????????# " " #?????????????????? | | ?????????" """" " #?????????????????? | | ?????????" " """" #?????????????????? | | ?????????" " " #?????????????????? | | ?????????# """""""" " #?????????????????? | | ????????#" " """ """""""???????????????????? | | ????????## """ " " ????????????????????? | | ?????????#####???###########?????????????????????? | | ?????????????????????????????????????????????????? | | ?????????????????????????????????????????????????? | | ?????????????????????????????????????????????????? | | ?????????????????????????????????????????????????? | | ?????????????????????????????????????????????????? | | ?????????????????????????????????????????????????? | | ?????????????????????????????????????????????????? | | ?????????????????????????????????????????????????? | | ?????????????????????????????????????????????????? | | ?????????????????????????????????????????????????? | +----------------------------------------------------+ Best States ------------- Heat Dissipation 92 Energy Generation 59 Energy Capacity 960 Matter Stores 550 Matter Capacity 550 Sight Range 22 Robot Scan Range 30 Terrain Scan Density 10 Jamming Range 16 Additional Mass Support 45 Armor Coverage 450 Utility Shielding 90 Melee Speed Boost 50 Evasion (%) 80 Melee Accuracy 20 Armor Integrity Analysis 90 Recoil Reduction 1 Offensive Hacking 76 Defensive Hacking 28 Item Schematics ----------------- None Robot Schematics ------------------ None Fabricated ------------ Imp. VTOL Module | x1 | -7/Factory Imp. VTOL Module | x1 | -7/Factory Imp. Hacking Suite | x1 | -6/Factory Exp. Sensor Array | x1 | -6/Factory Imp. Hacking Suite | x1 | -6/Factory Imp. Hacking Suite | x1 | -6/Factory Adv. System Shield | x1 | -5/Factory Mni. Smartbomb Launcher | x1 | -5/Factory Adv. System Shield | x1 | -5/Factory Exp. Hacking Suite | x1 | -4/Factory Exp. Hacking Suite | x1 | -4/Factory Nanosword | x1 | -4/Factory Exp. Utility Shielding | x1 | -4/Factory Nanosword | x1 | -4/Factory Exp. Cesium-ion Thruster | x1 | -3/Research Mni. Fusion Reactor | x1 | -3/Research Mni. Fusion Reactor | x1 | -3/Research Quantum Shading Machine | x1 | -3/Research Femtoactuators | x1 | -3/Research Exp. Melee Analysis Suite | x1 | -3/Research Exp. Armor Integrity Analyzer | x1 | -3/Testing Adv. Powered Armor | x1 | -2/Research Adv. Powered Armor | x1 | -2/Research Dimensional Manipulator | x1 | -2/Research Exp. Force Field | x1 | -2/Research Alien Tech Used ----------------- Integrated Reactor Transdimensional Reconstructor Core Stripper Integrated Heat Negator Core Reset Matrix LRC Matter Compressor Achievements -------------- None Challenges ------------ None Game ------ Seed FluxHoverWeb Manual? 0 Play Time 05:08:26 Cumulative 752.8 hours Start 2020.04.13 @ 15:59:05 End 2020.04.15 @ 01:34:41 Sessions 5 Manual Loads 0 Difficulty Rogue Special Mode None Game No. 663 Rogue 623 Adventurer 40 Explorer 0 Win Type - Total 67 Types 48/2/14/2/0/0/1 Lore% 92 Gallery% 94 Achievement% 74 Wizard Run 0 Options --------- ASCII 0 Keyboard 0 Movement Numpad Keybinds 0 Fullscreen 0 Font 16/Terminus Map View 76x50 Tactical HUD 1 Map Filters NONE Filters NONE Steam 1 RUN: 42a488e6-35c3-417f-8985-24661ab5d649